{"text_format":"3","workbook":"xlsx","n_sheets":5,"sheets":["general","SL_420_SW-R","SL_420_SW-L","Manually_operated","Obrázky"],"not_rendered":{"images":21,"defined_names":5},"read":"whole","date_system":"1900"}

{"sheet":"general","index":0,"n_rows":131,"n_cols":47,"rows_kept":131,"merged":[[1,20,1,27],[2,23,2,27],[6,10,6,13],[6,14,6,15],[6,17,6,18],[8,10,8,12],[10,10,10,12],[11,3,11,5],[11,16,12,16],[12,9,12,13],[13,9,13,14],[15,2,16,2],[16,7,17,7],[17,18,18,18],[17,19,18,19],[18,1,19,1],[18,2,19,2],[22,1,25,1],[23,2,25,2],[23,19,26,19],[25,7,26,7],[26,1,27,1],[27,7,28,7],[28,5,28,6],[30,24,31,26],[37,24,38,26],[40,24,41,26],[42,2,43,2],[44,4,45,5],[50,17,51,27],[53,17,54,27],[59,12,59,15],[59,22,59,27],[60,17,60,18],[60,19,60,20],[60,21,60,22],[60,23,60,24],[61,17,61,18],[61,19,61,20],[61,21,61,22],[61,23,61,24],[62,17,63,20],[62,21,63,27],[64,21,66,27],[67,21,68,24],[67,26,67,27],[68,26,68,27]]}
[{"$nulls":29},"č.jaz.",{"$f":"VLOOKUP(E5,AD3:AE11,2,FALSE)","v":4},null,"SVYHLEDAT","CZ","EN","DE","PL","FR","NL","EST","FIN","RU",{"$nulls":4},{"$f":"$AG$102","v":"ręcznie wykonany"}]
[{"$nulls":20},{"$f":"AG12","v":"PROWADZENIE STANDARDOWE (SL) 420, 500"},{"$nulls":8},"Jazyk","číslo",null,{"$f":"VLOOKUP(AH2,AH2:AR96,$AE$1,FALSE)","v":"Wybierz język"},"Zvolit jazyk: ","Select a language:","Wählen Sie eine Sprache","Wybierz język","Sélectionner une langue","Kies een taal:","Valige keel","Valitse kieli:","Выберите язык:",{"$nulls":4},{"$f":"$AG$104","v":"Łańcuch napędu -  lewy"}]
[null,"Zvol jazyk:",{"$nulls":5},{"$f":"VLOOKUP(AG3,AG2:AR96,$AE$1+1,FALSE)","v":"Szerokość otworu"},{"$nulls":3},"mm",{"$nulls":11},"W max 8000 mm; H max 6500 mm; max. 40 m2",{"$nulls":5},"CZ",1,null,"Szerokość otworu","Šířka otvoru","Opening width","Lichte Breite","Szerokość otworu","LARGEUR DE BAIE","Dagmaat breedte","Ava laius","Oviaukon leveys","Ширина проема",{"$nulls":4},{"$f":"$AG$105","v":"Łańcuch napędu -  prawy"}]
[null,"Select a language:",{"$nulls":27},"EN",2,null,"Wysokość otworu","Výška otvoru","Opening height","Lichte Höhe","Wysokość otworu","HAUTEUR DE BAIE","Dagmaat hoogte","Ava kõrgus","Oviaukon korkeus","Высота проема",{"$nulls":4},{"$f":"$AG$108","v":"silnik elektryczny po prawej stronie"}]
[null,"Wählen Sie eine Sprache:",null,null,"PL",null,null,{"$f":"VLOOKUP(AG4,AG2:AR96,$AE$1+1,FALSE)","v":"Wysokość otworu"},{"$nulls":3},"mm",null,null,{"$f":"VLOOKUP(AH99,AH99:AR175,$AE$1,FALSE)","v":"Prosimy o wypełnienie pól oznaczonych kolorem!"},{"$nulls":14},"DE",3,null,"Widok od środka","POHLED ZEVNITŘ","INTERIOR VIEW","INNENANSICHT","Widok od środka","VUE INTERIEURE","BINNENAANZICHT","seestvaade","SISÄLTÄPÄIN KUVATTUNA","Вид изнутри",{"$nulls":4},{"$f":"$AG$107","v":"silnik elektryczny po lewej stronie"}]
[null,"Wybierz język:",{"$nulls":27},"PL",4,null,"Przekrój A-A","ŘEZ A-A","SECTION A-A","DURCHSCHNITT A-A","Przekrój A-A","COUPE A-A","DOORSNEDE A-A","vaade A-A","LEIKKAUS A-A","Разрез А-А"]
[null,"Sélectionner une langue:",{"$nulls":5},{"$f":"VLOOKUP(AG101,AG8:AR101,$AE$1+1,FALSE)","v":"Sterowanie"},{"$nulls":21},"FR",5,null,"Przekrój B-B","ŘEZ B-B","SECTION B-B","DURCHSCHNITT B-B","Przekrój B-B","COUPE B-B","DOORSNEDE B-B","VAADE B-B","LEIKKAUS B-B","Разрез B-B"]
[null,"Valige keel",{"$nulls":27},"NL",6,null,"Uwaga:","POZNÁMKA:","NOTE:","ACHTUNG:","Uwaga:","Remarque:","OPMERKING:","MÄRKUS","HUOMAUTUS:","ПРИМЕЧАНИЯ:"]
[null,"Valitse kieli:",{"$nulls":5},{"$f":"AG115","v":"Rodzaj panelu"},{"$nulls":8},{"$f":"VLOOKUP($AG$6,$AG$2:$AR$96,$AE$1+1,FALSE)","v":"Przekrój A-A"},{"$nulls":12},"EST",7]
[null,"Выберите язык:",{"$nulls":13},{"$f":"IF(OR(K5=\"\",K7=\"\"),\"D\",\"D = \")","v":"D"},{"$f":"IF(OR($K$3=0,$K$5=0,$K$7=\"\"),\"\",L58)","v":""},{"$nulls":12},"FIN",8]
[{"$nulls":7},{"$f":"AG121","v":"Typ moznazowych"},{"$nulls":7},{"$f":"IF($K$5=\"\",\"\", \" = \" & $K$5)","v":""},{"$nulls":13},"RU",9]
[{"$nulls":3},{"$f":"VLOOKUP(AG5,AG2:AR96,$AE$1+1,FALSE)","v":"Widok od środka"},{"$nulls":12},{"$f":"IF(OR($K$3=\"\",K5=\"\",K7=\"\"),\"Y\",IF($Q$10<=3000,\"Y = 0\",IF(AND($Q$10>3000,$Q$10<=4500),\"Y = \"&L63,\"Y = \"& $L$66)))","v":"Y"},{"$nulls":15},{"$f":"VLOOKUP(AH12,AH12:AR106,$AE$1,FALSE)","v":"PROWADZENIE STANDARDOWE (SL) 420, 500"},"STANDARDNÍ VEDENÍ (SL) 420, 500","STANDARD LIFT SYSTEM (SL) 420, 500","STANDARD BESCHLAG (SL) 420, 500","PROWADZENIE STANDARDOWE (SL) 420, 500","LEVEE STANDARD (SL) 420, 500","Standaard beslagsysteem 420, 500","Standardtõste (SL) 420, 500","VAKIONOSTO (SL) 420, 500","СТАНДАРТНЫЙ ПОДЪЕМ (SL) 420, 500"]
[{"$nulls":9},{"$f":"IF(OR(K11=AG122,K11=AG123),\"W>7500 mm => 3\"\"\",\"\")","v":""},{"$nulls":22},{"$f":"VLOOKUP(AH13,AH13:AR107,$AE$1,FALSE)","v":"SPRĘŻYNY NAD NADPROŻEM"},"PRUŽINY NAD PŘEKLADEM","springs above lintel","Federn oberhalb des Sturzes","SPRĘŻYNY NAD NADPROŻEM","RESSORTS AVANTS DEPORTES DU LINTEAU","veren boven latei","Vedrud ava kohal","jouset ovipalkkin päällä","нижнее расположение вала"]
[{"$nulls":9},{"$f":"IF(OR(K11=AG122,K11=AG123),\"H> 4500 mm &W>6500 mm => 3''\",\"\")","v":""},{"$nulls":7},{"$f":"IF(OR(K5=\"\",K7=\"\"),\"Y2\",IF($Q$10>4500,\"Y2 = \"&$L$67,\"Y2  = 0\"))","v":"Y2"},{"$nulls":14},{"$f":"VLOOKUP(AH14,AH14:AR108,$AE$1,FALSE)","v":"pro HL>600 i HL<=1200"},"pro HL>600 a HL<=1200","pro HL>600 and HL<=1200","pro HL>600 und HL<=1200","pro HL>600 i HL<=1200","pro HL>600 et HL<=1200","PANEEL 40 mm","HL>600 ja HL<=1200","pro HL>600 ja HL<=1200","при высоте подъема > 600 и <= 1200"]
[{"$nulls":32},{"$f":"VLOOKUP(AH15,AH15:AR109,$AE$1,FALSE)","v":"Panel 40 mm"},"PANEL 40mm","SECTION THICKNESS 40 mm","Paneel 40 mm","Panel 40 mm","40 mm PANNEAU","Max. WxH 5000x5500 max. 25m2","Paneel 40 mm","Lamelli 40mm","ТОЛЩИНА СЕКЦИИ 40мм "]
[{"$nulls":32},{"$f":"VLOOKUP(AH16,AH16:AR110,$AE$1,FALSE)","v":"Max. W x H 4000x4000"},"Max. W x H 4000x4000","Max. W x H 4000x4000","Max. W x H 4000x4000","Max. W x H 4000x4000","Max. W x H 4000x4000","elektrisch bediende deuren","Max. W x H 4000x4000","Max. W x H 4000x4000","макс. ШхВ (WxH) 4000x4000"]
[]
[]
[{"$nulls":8},{"$f":" \"(1) \" & $AG$37","v":"(1) NIEZBĘDNA WOLNA PRZESTRZEŃ"}]
[{"$nulls":32},{"$f":"VLOOKUP(AH20,AH20:AR114,$AE$1,FALSE)","v":"montaż do muru i cegły"},"Montáž na cihlové zdivo","mounting on brickwork","Montage auf Mauerwerk und Ziegel","montaż do muru i cegły","montage sur béton","montage op beton","Paigaldus kiviseinale","asennus tiiliseinän","монтаж на бетон"]
[{"$nulls":8},{"$f":"IF(K7=AU1,\"\",\"(2) \"&$AG$48)","v":"(2) niezbędna przestrzeń boczna dla silnika lub napędu łańcuchowego"},{"$nulls":15},{"$f":"VLOOKUP(AG20,AG2:AR96,$AE$1+1,FALSE)","v":"montaż do muru i cegły"},{"$nulls":7},{"$f":"VLOOKUP(AH21,AH21:AR115,$AE$1,FALSE)","v":"montaż do betonu porowatego"},"Montáž na porobeton","mounting on cellular concrete","Montage auf Porenbeton oder Gasbeton","montaż do betonu porowatego","montage sur parpaing creux","montage op gasbeton","Paigaldus poorbetoonile","asennus betoniin","монтаж на газобетон"]
[{"$nulls":32},{"$f":"VLOOKUP(AH22,AH22:AR116,$AE$1,FALSE)","v":"montaż do płaszcza"},"Montáž na opláštění","mounting on insulated cůadding","Montage auf ISO-Trapezblechfassade","montaż do płaszcza","montage sur structure métallique  (a fournir par le charpentier)","montage op binnendooscontructie met damwandbeplating","Paigaldus soojustatud seinapaneelile","asennus eristettyyn seinäelementtiin","монтаж на металлокаркас"]
[{"$nulls":8},{"$f":"IF(OR(K7=AU1,K7=AU2,K7=AU3),\"\",\"(3) \"&$AG$49)","v":"(3) Powierzchnia montażowa dla jednostki sterującej. Wymiary można znaleźć w dokumentacji produktu"}]
[{"$nulls":8},{"$f":"IF(OR(K7=AU1,K7=AU2,K7=AU3),\"\",\"     \"&$AG$50)","v":"     oś ok. 1.400 do 1.500 mm od podłogi"}]
[{"$nulls":32},{"$f":"VLOOKUP(AH25,AH25:AR119,$AE$1,FALSE)","v":"PRACE, KTÓRE MUSZĄ ZOSTAĆ WYKONANE PRZEZ KLIENTA PRZED WYKONANIEM MONTAŻU, O ILE NIE UZGODNIONO INACZEJ."},"PRÁCE, KTERÉ MUSÍ BÝT PROVEDENY ZÁKAZNÍKEM PŘED MONTÁŽÍ, POKUD NEBYLO DOHODNUTO JINAK","WORK TO BE CARRIED OUT BY CUSTOMER, UNLESS IN ADVANCE OTHERWISE IS AGREED IN WRITING.","VORBEREITUNGEN UND ARBEITEN DIE VOM AUFTRAGGEBER ZU ERBRINGEN SIND, AUßER BEI SCHRIFTLICHER VEREINBARUNG IM VORAUS:","PRACE, KTÓRE MUSZĄ ZOSTAĆ WYKONANE PRZEZ KLIENTA PRZED WYKONANIEM MONTAŻU, O ILE NIE UZGODNIONO INACZEJ.","APPROVISIONNEMENT & TRAVAUX INCOMBANT AU MAITRE D'OUVRAGE  (sauf accord contraire)","VOORZIENINGEN EN WERKZAAMHEDEN DOOR OPDRACHTGEVER TE VERZORGEN, TENZIJ VOORAF SCHRIFTELIJK ANDERS IS OVEREENGEKOMEN ","Kliendi poolt tehtavad ettevalmistustööd v.a juhul kui pole kirjalikult teistmoodi kokku lepitud","ASIAKKAAN TEHTÄVÄT TYÖT, ELLEI ETUKÄTEEN KIRJALLISESTI MUUTOIN SOVITTU ","МАТЕРИАЛЫ И ПРОВЕДЕНИЕ РАБОТ ОБЕСПЕЧИВАЮТСЯ КЛИЕНТОМ,ЕСЛИ ИНОЕ НЕ ОГОВОРЕНО ЗАРАНЕЕ В ПИСЬМЕННОЙ ФОРМЕ"]
[{"$nulls":8},{"$f":"IF(OR(K7=AU1,K7=AU2,K7=AU3),\"\",\"(4) \"&$AG$51)","v":"(4) Parametry gniazdka elektrycznego można znaleźć w dokumentacji produktu."},{"$nulls":15},{"$f":"VLOOKUP(AG21,AG2:AR96,$AE$1+1,FALSE)","v":"montaż do betonu porowatego"},{"$nulls":7},"Konstrukcyjne:","Konstrukční:","Constructional :","Bauseits:","Konstrukcyjne:","Structure: ","Bouwkundig:","Ehituslikud:","\nRakenteellinen:","Конструктивно:"]
[{"$nulls":32},"Przygotowanie powierzchni montażowych dla prowadzenia bramy oraz dla sprężyn.","Příprava montážních ploch pro vedení vrat a pro pružiny.","Supply and fix mounting frame and mounting surfaces for the rails and the spring packet in case of aerated concrete or sandwichpanels etc.","Ein stählerner Montagerahmen zur Befestigung der vertikalen Laufschienen und des Federpakets bei nicht tragfähigen Flächen wie z.B. Porenbeton, Gasbeton, Isolationspanelen u.s.w..","Przygotowanie powierzchni montażowych dla prowadzenia bramy oraz dla sprężyn.","Préparation de la structure de montage des rails de guidage et des ressorts pour une pose sur panneaux isolants","Een stalen montageframe voor de bevestiging van de verticale looprails en het verenpakket bij niet dragende montagevlakken, zoals gasbeton, isolatiepanelen, sandwichpanelen enz.","Avaettevalmistusraami tarnimine ja paigaldus siinide ja vedrude kinnituseks","Toimittaa ja asentaa asennuskehyksen ja asennuspinnat kiskoille ja jousipaketille tapauksessa jossa kevytbetooni tai sandwich-paneeli jne.","Стальная монтажная рама для установки вертикальных направляющих и пружин в случае не несущих монтажных поверхностей, таких как: газобетон, изоляционные панели, сэндвич-панели и т.д."]
[{"$nulls":8},{"$f":"IF(OR(K7=AU1,K7=AU2,K7=AU3),\"\",\"(5) \"&$AG$36)","v":"(5) POWIERZCHNIA MONTAŻOWA DLA SILNIKA"},{"$nulls":23},"Montaż prowadzenia poziomego można wykonać w oddaleniu maks. 1 metra od konstrukcji stałej.","Montáž vodorovného vedení může být max. 1 metr od pevné konstrukce.","Mounting possibilities for the horizontal rails up to 1 meter above the rails must be provided.","Befestigungsmöglichkeit für die Zwischen- und Endaufhängung der horizontalen Laufschienen bis zu max. 1 m über diesen Laufschienen.","Montaż prowadzenia poziomego można wykonać w oddaleniu maks. 1 metra od konstrukcji stałej.","Lorsque les possibilités de montage des rails horizontaux dépassent ","Benodigde montagevlakken en vrije ruimtes, volgens tekening.","Paigaldusruum ülalpool siini max. 1m","Asennus mahdollisuudet vaakakiskoille enintään 1 metrin korkeudella kiskoista pitää olla mahdollista.","Способы крепления для горизонтальных направляющих максимум до 1м над данными направляющими."]
[{"$nulls":32},"Niezbędne powierzchnie montażowe oraz wolna przestrzeń wg rysunku.","Nezbytné montážní plochy a volný prostor dle nákresu.","Necessary mounting surface and free room as shown.","Benötigte Montageflächen und Freiräume gemäß Zeichnung.","Niezbędne powierzchnie montażowe oraz wolna przestrzeń wg rysunku.","Adapter la structure et l' espace disponible selon nos plans de réservations ci-contre",null,"Piisav paigaldusruum vastavalt lisatud joonisele","Tarvittava kiinnityspinta ja vapaa tilaa kuvan mukaisesti.","Необходимые монтажные поверхности и свободное пространство в соответствии с чертежом"]
[{"$nulls":32},"Przygotowanie elektryczne (dla elektrycznie sterowanej bramy segmentowej) :","Elekrická příprava (pro elektricky ovládaná sekční vrata): ","Electrical supply required to be :","Elektrisch (bei elektrisch bedienten Toren):","Przygotowanie elektryczne (dla elektrycznie sterowanej bramy segmentowej) :","Alimentation electrique  (pour porte motorisée) :","Elektrisch: (bij elektrisch bediende deuren)","Elektriliselt avatavate uste jaoks","Sähkönsyöttö tarvittu:","Электрика (для ворот с электрическим управлением):"]
[{"$nulls":24},{"$f":"VLOOKUP(AG22,AG2:AR96,$AE$1+1,FALSE)","v":"montaż do płaszcza"},{"$nulls":7},"Gniazdo CEE 16 A, 5P, 400 V = gniazdo z przewodnikiem zerowym i uziemiającym","Zásuvka CEE 16 A, 5P, 400 V = zásuvka s nulovým a zemnícím vodičem","400V/230V 3 phase neutral and earth terminating, provided by euro plug socket.","Stromzufuhr 400V/230V mittels Eurosteckdose, 3 Phasen+0+PE max.1 meter vom Schaltkasten.","Gniazdo CEE 16 A, 5P, 400 V = gniazdo z przewodnikiem zerowym i uziemiającym","400V triphase T+N avec prise de raccordement CEE 16 A","Voeding  400V/230V door middel van eurostopcontact, 3 fase+0+PE max. ","Toite vedu ajamini - 400V/230V, 3 faasi","400V / 230V 3 vaihe+neutraali ja maadoitus tarjotuna Euro pistorasiasta.","Питание 400V/230V посредством заземленной евророзетки, 3 фазы+0+РЕ "]
[{"$nulls":32},"Zapewnić odpowiednią powierzchnię montażową dla jednostki sterującej silnika 250x400","Zajistit vhodnou montážní plochu pro řídící jednotku motoru 250 x 400 mm","Provide suitable mounting surface for control panel, dimensions 250 x 400 mm","Montagefläche für Schaltkasten, Abmessungen 250 x 400 mm","Zapewnić odpowiednią powierzchnię montażową dla jednostki sterującej silnika 250x400","Assurer une surface de montage adéquate pour le coffret de commande du moteur L.250 x H.400 mm","Montagevlak t.b.v. schakelkast, afmetingen 250 x 400 mm","Kontrolleri jaoks piisava paigaldusruumi tagamine 250x400 mm","Tarjoa sopivan kiinnityspinnan  ohjauspaneelia varten ,mitat 250 x 400 mm","необходимо обеспечить монтажную поверхность для панели управления, размеры 250х400 мм"]
[]
[]
[{"$nulls":17},{"$f":"IF($K$9=$AG$118,290,250)","v":250},{"$nulls":14},{"$f":"VLOOKUP(AH35,AH35:AR129,$AE$1,FALSE)","v":"NIEZBĘDNA POWIERZCHNIA MONTAŻOWA"},"NEZBYTNÁ MONTÁŽNÍ PLOCHA","NECESSARY MOUNTING SURFACE","BENÖTIGTE MONTAGEFLÄCHEN","NIEZBĘDNA POWIERZCHNIA MONTAŻOWA","SURFACE NECESSAIRE DE MONTAGE","BENODIGDE MONTAGEVLAKKEN","Vajalik paigaldusruum","TARVITTAVA KIINNITYSPINTA","необходимая монтажная поверхность"]
[{"$nulls":32},"POWIERZCHNIA MONTAŻOWA DLA SILNIKA","MONTÁŽNÍ PLOCHA PRO MOTOR ","MOUNTING SURFACE FOR MOTOR","MONTAGEFLÄCHE FÜR DEN MOTOR ","POWIERZCHNIA MONTAŻOWA DLA SILNIKA","SURFACE DE L'EMPLACEMENT POUR ","BENODIGD KADER VOOR MOTOR","Vajalik ruum mootori paigalduseks ","KIINNITYSPINTA MOOTORILLE","монтажная поверхность для мотора "]
[{"$nulls":11},{"$f":"VLOOKUP(AG41,AG2:AR96,$AE$1+1,FALSE)","v":"nachylenie podłogi"},{"$nulls":20},"NIEZBĘDNA WOLNA PRZESTRZEŃ","NEZBYTNÝ VOLNÝ PROSTOR","NECESSARY FREE ROOM","BENÖTIGTER FREIRAUM","NIEZBĘDNA WOLNA PRZESTRZEŃ","ESPACE LIBRE NECCESSARIE","BENODIGDE VRIJE RUIMTE ","Vajalik vaba ruum ","TARVITTAVA VAPAA TILA","необходимое свободное пространство"]
[]
[]
[{"$nulls":3},{"$f":"VLOOKUP(AG7,AG2:AR96,$AE$1+1,FALSE)","v":"Przekrój B-B"}]
[{"$nulls":32},{"$f":"VLOOKUP(AH41,AH41:AR135,$AE$1,FALSE)","v":"nachylenie podłogi"},"sklon podlahy","fall of the floor","Bodenneigung","nachylenie podłogi","réservations seuil béton","vloer met waterkering","pinna langus","kaltevuus","пол с водоотводом"]
[{"$nulls":32},{"$f":"VLOOKUP(AH42,AH42:AR136,$AE$1,FALSE)","v":"w kierunku na zewnątrz"},"směrem ven","outside","nach aussen","w kierunku na zewnątrz",{"$f":"\"\"","v":""},"buitenzijde","väljaspool","ulkopuoli"]
[{"$nulls":32},{"$f":"VLOOKUP(AH43,AH43:AR137,$AE$1,FALSE)","v":"nachylenie 3%"},"sklon 3%","fall 3%","Gefälle 3%","nachylenie 3%","PENTE 3%","afschot 3%","langus 3%","kaltevuus 3%","наклон 3%"]
[{"$nulls":32},{"$f":"VLOOKUP(AH44,AH44:AR138,$AE$1,FALSE)","v":"w kierunku na zewnątrz"},"směrem ven","internal level","Wasserschenkel","w kierunku na zewnątrz","réservations seuil béton","niveau binnen","Sisemine tasand","sisäinen taso"]
[{"$nulls":17},{"$f":"VLOOKUP(AG35,AG2:AR96,$AE$1+1,FALSE)","v":"NIEZBĘDNA POWIERZCHNIA MONTAŻOWA"},{"$nulls":14},{"$f":"VLOOKUP(AH45,AH45:AR139,$AE$1,FALSE)","v":"nachylenie podłogi"},"sklon podlahy","floor with raised","Boden mit","nachylenie podłogi",{"$f":"\"\"","v":""},"vloer met  ","põrand koos tõstetud sisetasandiga","lattia nostetulla","пол с наклоном 3%"]
[]
[{"$nulls":17},{"$f":"VLOOKUP(AG36,AG4:AR97,$AE$1+1,FALSE)","v":"POWIERZCHNIA MONTAŻOWA DLA SILNIKA"},{"$nulls":5},{"$f":"VLOOKUP(AG37,AG4:AR97,$AE$1+1,FALSE)","v":"NIEZBĘDNA WOLNA PRZESTRZEŃ"}]
[null,{"$f":"VLOOKUP(AG8,AG2:AR96,$AE$1+1,FALSE)","v":"Uwaga:"},{"$nulls":30},{"$f":"VLOOKUP(AH48,AH48:AR142,$AE$1,FALSE)","v":"niezbędna przestrzeń boczna dla silnika lub napędu łańcuchowego"},"nezbytný boční prostor pro motor nebo řetězový pohon","necessary side room for electrical- or hauling chain operation","Benötigter Freiraum bei Elektro- oder Haspelkettenbedienung ","niezbędna przestrzeń boczna dla silnika lub napędu łańcuchowego","écoinçon minimum requis pour le moteur ou treuil a chaîne","benodigde vrije ruimte voor elektrische- of ketting bediening","vajalik küljeruum mootori või tali puhul","tarvittava tila mootori- tai ketjunostolle ","необходимое боковое пространство для электропривода или цепного редуктора"]
[null,{"$f":"VLOOKUP(AG55,AG2:AR96,$AE$1+1,FALSE)","v":"Powierzchnia, do której wykonywany jest montaż, musi być równa i stabilna,a wszystkie powierzchnie montażowe powinny znajdować się w jednej płaszczyźnie."},{"$nulls":30},{"$f":"VLOOKUP(AH49,AH49:AR143,$AE$1,FALSE)","v":"Powierzchnia montażowa dla jednostki sterującej. Wymiary można znaleźć w dokumentacji produktu"},"montážní plocha pro řídící jednotku. Rozměry najdete v dokumentaci ŘJ.","Mounting surface for control panel. See product documentation for dimensions","Montagefläche für Antriebsteuerung. Siehe Produktdokumentation für Abmessungen","Powierzchnia montażowa dla jednostki sterującej. Wymiary można znaleźć w dokumentacji produktu","Surface de montage pour le Coffret de commande","Montagevlak t.b.v. Zie productdocumentatie voor afmetingen","Kontrolli paigaldusala. Vaata toote dokumentatsiooni mõõtmete kohta","Kiinnityspinta ohjauspaneelia varten. Katso mitat tuoteasiakirjoista","монтажная поверхность для блока управления. Размеры см. в документации на изделие"]
[null,{"$f":"VLOOKUP(AG56,AG2:AR96,$AE$1+1,FALSE)","v":"Otwór musi być pionowy i prostokątny."},{"$nulls":30},{"$f":"VLOOKUP(AH50,AH50:AR144,$AE$1,FALSE)","v":"oś ok. 1.400 do 1.500 mm od podłogi"},"osa cca 1.400 až 1.500 mm od podlahy","center line ca 1.400 -1.500 mm above floor","Achse ca. 1.400 bis 1.500 mm vom Boden","oś ok. 1.400 do 1.500 mm od podłogi","Voir la documentation du produit pour les dimensions. axe d'env. 1 400 a 1 500 mm a compter ","hartlijn ca. 1.400 - 1.500 boven de vloer","Keskjoon ca 1400-1500 mm põrandast","keskiviiva ca 1,400 -1,500 mm: n korkeudella lattiasta","осевая линия примерно 1.400-1.500 мм над уровнем пола"]
[null,{"$f":"VLOOKUP(AG57,AG2:AR96,$AE$1+1,FALSE)","v":"Podłoga musi być równa i pozioma."},{"$nulls":15},{"$f":"VLOOKUP(AG25,AG2:AR96,$AE$1+1,FALSE)","v":"PRACE, KTÓRE MUSZĄ ZOSTAĆ WYKONANE PRZEZ KLIENTA PRZED WYKONANIEM MONTAŻU, O ILE NIE UZGODNIONO INACZEJ."},{"$nulls":14},{"$f":"VLOOKUP(AH51,AH51:AR145,$AE$1,FALSE)","v":"Parametry gniazdka elektrycznego można znaleźć w dokumentacji produktu."},"Zásuvka, parametry najdete v dokumentaci produktu","Electric outlet parameters can be found in the product documentation.","Die Parameter der Steckdosen sind in der Produktdokumentation zu finden.","Parametry gniazdka elektrycznego można znaleźć w dokumentacji produktu.","Les paramètres des prises électriques sont indiqués dans la documentation du produit.","De parameters van het stopcontact zijn te vinden in de productdocumentatie.","Elektripistiku parameetrid leiate toote dokumentatsioonist.","Pistorasian parametrit löytyvät tuoteasiakirjoista.","Параметры электрической розетки приведены в документации на изделие.","Параметры электрической розетки приведены в документации на изделие."]
[null,{"$f":"VLOOKUP(AG129,AG3:AR210,$AE$1+1,FALSE)","v":"Dla przerywacza kabla z pomarańczową osłoną odstęp boczny (L i R) min. 145 mm"}]
[{"$nulls":17},{"$f":"VLOOKUP(AG26,AG2:AR96,$AE$1+1,FALSE)","v":"Konstrukcyjne:"}]
[{"$nulls":17},{"$f":"VLOOKUP(AG27,AG2:AR96,$AE$1+1,FALSE)","v":"Przygotowanie powierzchni montażowych dla prowadzenia bramy oraz dla sprężyn."}]
[null,{"$f":"VLOOKUP(AG60,AG2:AR96,$AE$1+1,FALSE)","v":"Wymiary podane w mm"},{"$nulls":4},{"$f":"IF(K7=\"\",AG76 & \"\",AG101&\":\" & \"  \" &K7)","v":"Sterowanie elektr. lub za pom. przekł. łańc."},{"$nulls":5},{"$f":"VLOOKUP(AG81,AG6:AR99,$AE$1+1,FALSE)","v":"Wolna przestrzeń nad nadprożem (min.)"},{"$nulls":19},{"$f":"VLOOKUP(AH55,AH55:AR149,$AE$1,FALSE)","v":"Powierzchnia, do której wykonywany jest montaż, musi być równa i stabilna,a wszystkie powierzchnie montażowe powinny znajdować się w jednej płaszczyźnie."},"Plocha, která se montuje, musí být rovná a pevná a všechny montážní plochy musí být v jedné rovině. ","Mounting surface must be flat and massive and all mounting surfaces must be in one level.","Fläche, an die montiert wird, muss gerade und fest sein und alle Montageflächen müssen in einer Ebene sein.","Powierzchnia, do której wykonywany jest montaż, musi być równa i stabilna,a wszystkie powierzchnie montażowe powinny znajdować się w jednej płaszczyźnie.","La surface d'appui pour la pose de la porte sectionnelle doit etre dans le meme plan et verticale.","De achterkanten van de penanten, de latei en de montagevlakken van het verenpakket dienen vlak en in één lijn te liggen.","Paigalduspind peab olema sirge, loodis ja mittepudenev ning kõik paigalduspinnad peavad olema ühes tasapinnas","Asennuspintojen pitää olla tasaisia, kiinteitä ja samassa linjassa.","Монтажная поверхность должна быть ровной и располагаться в одной вертикальной плоскости."]
[null,"W ",{"$f":"VLOOKUP(AG61,AG2:AR96,$AE$1+1,FALSE)","v":"Szerokość otworu"},null,null,{"$f":"IF(K3=\"\",\"W \",\"W = \" &K3)","v":"W "},{"$f":"IF(K7=\"\",\"L/R\",\"L\")","v":"L/R"},{"$f":"IF(K7=\"\",AG130,VLOOKUP(AG67,AG7:AR100,$AE$1+1,FALSE))","v":"Strona silnika "},{"$nulls":3},{"$f":"IF(K7=\"\",\"min. 375\",F60)","v":"min. 375"},"F",{"$f":"IF(K5>5500,P58,P57)","v":500},{"$f":"IF(AND(K5>=3000,K3>=7000),P58,IF(K5>=5500,P58,420))","v":420},{"$f":"IF(K9=AG118,O56+40,O56)","v":420},{"$nulls":16},{"$f":"VLOOKUP(AH56,AH56:AR150,$AE$1,FALSE)","v":"Otwór musi być pionowy i prostokątny."},"Otvor musí být svislý a obdélníkový.","Furthermore the opening must be plumb and square.","Im übrigen müssen die lichten Masse eben und rechtwinklig sein.","Otwór musi być pionowy i prostokątny.","L'ouverture de la baie doit etre parfaitement de niveau et d'equerre.","Tevens moet de dagmaat vlak en haaks zijn.","Ava peab olema täpne ja nelinurkne","Lisäksi oviaukon pitää olla pysty- ja vaakasuora sekä nelikulmainen.","Проем также должен быть ровным и прямоугольным."]
[null,"H ",{"$f":"VLOOKUP(AG62,AG3:AR96,$AE$1+1,FALSE)","v":"Wysokość otworu"},null,null,{"$f":"IF(K5=\"\",\"H \",\"H = \" &K5)","v":"H "},{"$f":"IF(K7=\"\",\"L/R\",\"R\")","v":"L/R"},{"$f":"IF(K7=\"\",AG131,VLOOKUP(AG68,AG8:AR101,$AE$1+1,FALSE))","v":"Druga strona "},{"$nulls":3},{"$f":"IF(K7=\"\",\"min. 125\",F61)","v":"min. 125"},"W > 7000  & H > 3000",null,null,500,null,{"$f":"VLOOKUP(AG29,AG2:AR96,$AE$1+1,FALSE)","v":"Niezbędne powierzchnie montażowe oraz wolna przestrzeń wg rysunku."},{"$nulls":14},{"$f":"VLOOKUP(AH57,AH57:AR151,$AE$1,FALSE)","v":"Podłoga musi być równa i pozioma."},"Podlaha musí být rovná a vodorovná.","Floor area must be flat and horizontal.","Der Fussboden muss glatt und waagerecht sein.","Podłoga musi być równa i pozioma.","Le sol doit etre parfaitement horizontal et plan.","De afgewerkte vloer dient vlak en waterpas te liggen.","Põrandapind peab olema sile ja horisontaalne","Lattian pitää olla tasainen ja vaakasuora.","Обработанный пол должен быть ровным и без склонов."]
[null,"F ",{"$f":"VLOOKUP(AG65,AG5:AR98,$AE$1+1,FALSE)","v":"Wolna przestrzeń nad nadprożem"},null,null,{"$f":"IF(K5=\"\",\"F \",\"F = \" &P56)","v":"F "},{"$f":"IF(G56=\"\",\"\",\"D\")","v":"D"},{"$f":"IF(G56=\"\",\"\",AG69)","v":"Głębokość prowadzenia poziomego"},null,null,{"$f":"IF(K7=\"\",\"\",IF(K7=AG102,\"H + 490\",\"H + 660\"))","v":""},{"$f":"IF(OR(K7=\"\",K5=\"\"),\"\",IF(K7=AG102,K5+490,K5+660))","v":""},"H > 5500",null,null,500,null,{"$f":"VLOOKUP(AG30,AG2:AR96,$AE$1+1,FALSE)","v":"Przygotowanie elektryczne (dla elektrycznie sterowanej bramy segmentowej) :"}]
[null,"A ",{"$f":"VLOOKUP(AG82,AG6:AR99,$AE$1+1,FALSE)","v":"Oś wału nad nadprożem"},null,null,{"$f":"IF(K5=\"\",\"A\",\"A = \" &P61)","v":"A"},{"$f":"IF(OR(L58<=3000,K5=\"\"),VLOOKUP(AG79,AG6:AR99,$AE$1+1,FALSE),\"\")","v":"Punkty mocowania, jeżeli"},null,{"$f":"IF(OR(L58<=3000,K5=\"\"),\"D<=3000\",\"\")","v":"D<=3000"},{"$nulls":3},{"$f":"VLOOKUP(AG126,AG60:AR126,$AE$1+1,FALSE)","v":" 1 1/4 \"Wał"},null,null,500,null,{"$f":"VLOOKUP(AG51,AG2:AR96,$AE$1+1,FALSE)","v":"Parametry gniazdka elektrycznego można znaleźć w dokumentacji produktu."}]
[null,"L ",{"$f":"VLOOKUP(AG67,AG7:AR100,$AE$1+1,FALSE)","v":"Wolna przestrzeń W LEWO"},null,null,{"$f":"IF(OR(K3=\"\",K7=\"\"),\"L\",IF($K$11=$AG$123,\"L =\" & Obrázky!$Z$17+25,\"L = \" &Obrázky!$Z$17))","v":"L"},{"$f":"IF(OR(L58<=3000,K5=\"\"),\"X\",\"\")","v":"X"},{"$f":"IF(OR(L58<=3000,K5=\"\"),VLOOKUP(AG80,AG6:AR99,$AE$1+1,FALSE),\"\")","v":"Punkty mocowania"},null,null,{"$f":"IF(K5=\"\",\"H\",IF(L58<=3000,\"H \",\"\"))","v":"H"},{"$f":"IF(L58<3000,IF(OR(K5=\"\",K7=\"\"),\"\",K5),\"\")","v":""},{"$f":"VLOOKUP(AG82,AG7:AR100,$AE$1+1,FALSE)","v":"Oś wału nad nadprożem"},{"$nulls":19},{"$f":"VLOOKUP(AH60,AH60:AR154,$AE$1,FALSE)","v":"Wymiary podane w mm"},"Rozměry jsou v mm","UNITS in mm","MASSE in mm","Wymiary podane w mm","MESURES en mm","MATEN in mm","Mõõdud mm","YKSIKKÖ mm","размеры в мм:"]
[null,"R ",{"$f":"VLOOKUP(AG68,AG8:AR101,$AE$1+1,FALSE)","v":"Wolna przestrzeń W PRAWO"},null,null,{"$f":"IF(OR(K3=\"\",K7=\"\"),\"R\",IF(AND($K$11=$AG$123,K3<>\"\",K7<>\"\"),\"R = \"&Obrázky!Z16+25,\"R = \"&Obrázky!Z16))","v":"R"},{"$f":"IF(K5=\"\",VLOOKUP(AG79,AG6:AR99,$AE$1+1,FALSE),IF(AND(L58>=3000,L58<4500),VLOOKUP(AG79,AG6:AR99,$AE$1+1,FALSE),\"\"))","v":"Punkty mocowania, jeżeli"},null,{"$f":"IF(K5=\"\",\"3000<D<=4500\",IF(AND(L58>3000,L58<=4500),\"3000<D<=4500\",\"\"))","v":"3000<D<=4500"},{"$nulls":3},"A",null,{"$f":"IF(K5>5500,O63,IF(AND(K5>=3000,K3>=7000),O63,O62))","v":340},{"$f":"IF(K9=AG119,O61+40,O61)","v":380},null,{"$f":"VLOOKUP(AG85,AG2:AR96,$AE$1+1,FALSE)","v":"Wykonał:"},null,{"$f":"VLOOKUP(AG86,AG2:AR96,$AE$1+1,FALSE)","v":"Skorygował:"},null,{"$f":"VLOOKUP(AG87,AG2:AR96,$AE$1+1,FALSE)","v":"Skorygowano dnia:"},null,{"$f":"VLOOKUP(AG88,AG2:AR96,$AE$1+1,FALSE)","v":"Nazwa pliku:"},null,{"$f":"VLOOKUP(AG89,AG2:AR96,$AE$1+1,FALSE)","v":"Data:"},{"$f":"VLOOKUP(AG90,AG2:AR96,$AE$1+1,FALSE)","v":"Podział.:"},{"$f":"VLOOKUP(AG91,AG2:AR96,$AE$1+1,FALSE)","v":"Format:"},{"$nulls":4},"Szerokość otworu","Šířka otvoru","Opening width","Lichte Breite","Szerokość otworu","LARGEUR DE BAIE","Dagmaat breedte","Ava laius","Oviaukon leveys","ширина проема"]
[null,"D ",{"$f":"VLOOKUP(AG69,AG9:AR102,$AE$1+1,FALSE)","v":"Głębokość prowadzenia poziomego"},null,null,{"$f":"IF(OR($K$3=0,$K$5=0,$K$7=\"\"),\"D\",\"D = \" &$L$58)","v":"D"},{"$f":"IF(K5=\"\",\"X\",IF(AND(L58>3000,L58<=4500),\"X\",\"\"))","v":"X"},{"$f":"IF(K5=\"\",VLOOKUP(AG70,AG6:AR99,$AE$1+1,FALSE),IF(AND(L58>3000,L58<=4500),VLOOKUP(AG70,AG6:AR99,$AE$1+1,FALSE),\"\"))","v":"Punkt mocowania nr 1"},null,null,{"$f":"IF(K5=\"\",\"H\",IF(AND(L58>3000,L58<=4500),\"H\",\"\"))","v":"H"},{"$f":"IF(OR(K5=\"\",K7=\"\"),\"\",IF(AND(L58>3000,L58<=4500),IF(OR(K5=\"\"),\"\",K5),\"\"))","v":""},"F = 420",null,340,null,null,"K. Luňák",null,"R. Kříž",null,"2023-10-31",null,"STP",null,"2023-10-31","-","A3",{"$nulls":4},"Wysokość otworu","Výška otvoru","Opening height","Lichte Höhe","Wysokość otworu","HAUTEUR DE BAIE","Dagmaat hoogte","Ava kõrgus","Oviaukon korkeus","высота проема"]
[null,"X",{"$f":"VLOOKUP(AG70,AG13:AR104,$AE$1+1,FALSE)","v":"Punkt mocowania nr 1"},{"$nulls":3},{"$f":"IF(K5=\"\",\"Y\",IF(AND(L58>3000,L58<=4500),\"Y\",\"\"))","v":"Y"},{"$f":"IF(K5=\"\",VLOOKUP(AG71,AG6:AR99,$AE$1+1,FALSE),IF(AND(L58>3000,L58<=4500),VLOOKUP(AG71,AG6:AR99,$AE$1+1,FALSE),\"\"))","v":"Punkt mocowania nr 2"},null,null,{"$f":"IF(K5=\"\",\"1/2 X\",IF(AND(L58>3000,L58<=4500),\"1/2 X\",\"\"))","v":"1/2 X"},{"$f":"IF(OR(K5=\"\"),\"\",IF(AND(L58>3000,L58<=4500),IF(OR(K5=\"\"),\"\",L62/2),\"\"))","v":""},"F = 500",null,380,null,null,"http://door-documents.com/en/indy-installation-drawing-sl",{"$nulls":3},{"$f":"VLOOKUP(AG92,AG2:AR96,$AE$1+1,FALSE)","v":"PRZYGOTOWANIE KONSTRUKCYJNE  "},{"$nulls":10},"Wyciąg wysoki","High lift","High lift","Höhe der Führung","Wyciąg wysoki","LEEVE HAUTE","High lift","Kõrge tõste","korkeanosto","Высокий подъем"]
[null,"Y ",{"$f":"VLOOKUP(AG71,AG14:AR105,$AE$1+1,FALSE)","v":"Punkt mocowania nr 2"},{"$nulls":3},{"$f":"IF(K5=\"\",VLOOKUP(AG79,AG6:AR99,$AE$1+1,FALSE),IF(L58>4500,VLOOKUP(AG79,AG6:AR99,$AE$1+1,FALSE),\"\"))","v":"Punkty mocowania, jeżeli"},null,{"$f":"IF(K5=\"\",\"D>4500\",IF(L58>4500,\"D>4500\",\"\"))","v":"D>4500"},{"$nulls":23},"Wysokość stropu","Výška stropu","Interior height","Höhe Innenraum","Wysokość stropu","HAUTEUR SOUS PLAFOND","Hoogte binnenruimte","Sisemine kõrgus","sisäkorkeus","высота внутри помещения до перекрытий"]
[null,"Z ",{"$f":"VLOOKUP(AG110,AG12:AR110,$AE$1+1,FALSE)","v":"Wariant montażu sprężyn"},{"$nulls":3},{"$f":"IF(L58>4500,\"X\",\"\")","v":"X"},{"$f":"IF(L58>4500,VLOOKUP(AG70,AG9:AR102,$AE$1+1,FALSE),\"\")","v":"Punkt mocowania nr 1"},null,{"$f":"IF($K$7=$AG$102,$L$57,$L$60)","v":""},{"$f":"IF(L58>4500,\"H\",\"\")","v":"H"},{"$f":"IF(K5=\"\",\"\",IF(L58>4500,K5,\"\"))","v":""},{"$nulls":9},{"$f":"AG12","v":"PROWADZENIE STANDARDOWE (SL) 420, 500"},{"$nulls":10},"Wolna przestrzeń nad nadprożem","Volný prostor nad překladem","Free room above lintel","Freiraum über Sturz","Wolna przestrzeń nad nadprożem","RETOMBEE DE LINTEAU DISPONIBLE","Vrije ruimte boven latei","Vaba ruum laeni","vapaa ylätila","свободное пространство над проемом"]
[{"$nulls":6},{"$f":"IF(L58>4500,\"Y\",\"\")","v":"Y"},{"$f":"IF(L58>4500,VLOOKUP(AG71,AG10:AR103,$AE$1+1,FALSE),\"\")","v":"Punkt mocowania nr 2"},null,{"$f":"IF($K$7=$AG$102,$L$57,$L$60)","v":""},{"$f":"IF(L58>4500,\"(X/3)*2\",\"\")","v":"(X/3)*2"},{"$f":"IF(K5=\"\",\"\",IF(L58>4500,ROUND((L65/3)*2,0),\"\"))","v":""},{"$nulls":20},"Wysokość powyżej otworu montażowego powierzchni","Výška montážní plochy nad otvorem","Height of frame above opening","Höhe über Montagefläche Loch","Wysokość powyżej otworu montażowego powierzchni","HAUTEUR AU-DESSUS DU TROU DE SURFACE DE MONTAGE","Hoogte frame boven latei","Raami kõrgus ava kohal","Rungon korkeus oviaukon yläpuolella.","высота конструкции ворот над проемом"]
[{"$nulls":6},{"$f":"IF(L58>4500,\"Y2\",\"\")","v":"Y2"},{"$f":"IF(L58>4500,VLOOKUP(AG72,AG11:AR104,$AE$1+1,FALSE),\"\")","v":"Punkt mocowania nr 3"},null,{"$f":"IF($K$7=$AG$102,$L$57,$L$60)","v":""},{"$f":"IF(L58>4500,\"X/3\",\"\")","v":"X/3"},{"$f":"IF(K5=\"\",\"\",IF(L58>4500,ROUND(L65/3,0),\"\"))","v":""},{"$nulls":20},"Wolna przestrzeń W LEWO","Volný prostor vlevo","Free side room left","Freiraum LINKS","Wolna przestrzeń W LEWO","ECOINCON GAUCHE","Vrije zijruimte links","Vaba küljeruum vasakul","vapaa tila vasemalla","свободное боковое пространство СЛЕВА"]
[{"$nulls":21},{"$f":"AG12","v":"PROWADZENIE STANDARDOWE (SL) 420, 500"},{"$nulls":3},{"$f":"VLOOKUP(AG95,AG2:AR96,$AE$1+1,FALSE)","v":"Kod:"},{"$f":"VLOOKUP(AG96,AG2:AR96,$AE$1+1,FALSE)","v":"Wersja:"},{"$nulls":5},"Wolna przestrzeń W PRAWO","Volný prostor vravo","Free side room right","Freiraum RECHTS","Wolna przestrzeń W PRAWO","ECOINCON DROITE","Vrije zijruimte rechts","Vaba küljeruum paremal","vapaa tila oikealla","свободное боковое пространство СПРАВА"]
[{"$nulls":25},10,2344,{"$nulls":5},"Głębokość prowadzenia poziomego","Hloubka vedení","Back room","Einbautiefe","Głębokość prowadzenia poziomego","REFOULEMENT HORS-TOUT","Inbouwdiepte","Sügavus","tila takana","монтажная глубина"]
[{"$nulls":32},"Punkt mocowania nr 1","Kotvící bod č. 1","1 st hanging point","1. Aufhängepunkt","Punkt mocowania nr 1","POINT D'ANCRAGE 1 SUSPENTE","1e ophangpunt","1.kinnituskoht","1. ripustuspiste","1 точка крепления горизонтальных направляющих"]
[{"$nulls":32},"Punkt mocowania nr 2","Kotvící bod č. 2","2 nd hanging point","2. Aufhängepunkt","Punkt mocowania nr 2","POINT D'ANCRAGE 2 SUSPENTE","2e ophangpunt","2.kinnituskoht","2. ripustuspiste","2 точка крепления горизонтальных направляющих"]
[{"$nulls":32},"Punkt mocowania nr 3","Kotvící bod č. 3","3 rd hanging point","3. Aufhängepunkt","Punkt mocowania nr 3","POINT D'ANCRAGE 3 SUSPENTE","3e ophangpunt","3. kinnituskohta","3. ripustuspiste","3 точка крепления горизонтальных направляющих"]
[{"$nulls":32},"Wolny przestrzeń nad nadproźem","Volný prostor nad překladem","Free room above mounting surface","Freiplatz auf der Mountageplatz","Wolny przestrzeń nad nadproźem","Espace au-dessus de la surface de montage","Ruimte boven montagevlak","Vaba ruum ülalpool paigalduspinda","Vapaa tila asennuspisten kohdalla","технологический зазор"]
[{"$nulls":32},"Sterowanie ręczne","Ruční ovládání","Manually operated","Handbedienung","Sterowanie ręczne","PORTE MANUELLE","Handbediend","Käsitsi avatav","Käsikäyttöinen","ручное управление"]
[{"$nulls":32},"Obie strony","Obě strany","Both sided","Beide Seiten","Obie strony","LES 2 COTES","Beide zijden","Mõlemal pool","\nKaksipuoleinen","обе стороны"]
[{"$nulls":32},"Sterowanie elektr. lub za pom. przekł. łańc.","Ovládání elektricky nebo řetězovým převodem","Electrical or hauling chain operated","Elektrisch- oder Haspelkettenbedient","Sterowanie elektr. lub za pom. przekł. łańc.","PORTE MOTORISEE OU AVEC TREUIL A CHAINE","Elektrisch- of handketting bediend","Elektriliselt või taliga avatav","Sähkö- tai ketjukäytöinen","электрическое управление или с помощью цепи"]
[{"$nulls":32},"Silnik lub przekł. łańc.","Motor nebo řetěz. př.","Motor or chain side","Motor-oder Kettenseite","Silnik lub przekł. łańc.","ECOINCON LIBRE A COTE DE MOTEUR","Motor- of kettingzijde","Mootori või tali pool","Mootorin tai ketjun puolinen","сторона цепи или мотора"]
[{"$nulls":32},"Głębokość prowadzenia","Hloubka vedení","Back room","Einbautiefe","Głębokość prowadzenia","REFOULEMENT HORS-TOUT","Inbouwdiepte","Sügavus","Tila takana","монтажная глубина"]
[{"$nulls":32},"Punkty mocowania, jeżeli","Kotvící bod, když je","Hanging point if","Aufhängepunkte, wenn","Punkty mocowania, jeżeli","POINT D'ANCRAGE DES SUSPENTES, SI","Ophangpunt, als","Kinnituskoht, kui ","Ripustuspiste jos","точки крепления горизонтальных направляющих, если"]
[{"$nulls":32},"Punkty mocowania","Kotvící bod","Hanging point","Aufhängepunkte","Punkty mocowania","POINT D'ANCRAGE DES SUSPENTES","Ophangpunt","Kinntuskoht","Ripustuspiste","точка крепления"]
[{"$nulls":32},"Wolna przestrzeń nad nadprożem (min.)","Volný prostor nad překladem","Free room above lintel","Freiraum über Sturz","Wolna przestrzeń nad nadprożem (min.)","RETOMBEE DE LINTEAU DISPONIBLE","Vrije ruimte boven latei","Vaba ruum sillusest  laeni","Tila oviaukon päällä","свободное пространство над проемом"]
[{"$nulls":32},"Oś wału nad nadprożem","Osa hřídele nad překladem","Height of shaft above lintel","Mitte Achse zum Sturz","Oś wału nad nadprożem","POSITIONNEMENT AXE DE l'ARBRE DE LINTEAU","Center as boven latei","Kesktelg","Akseli ovipalkkin päällä","центральная ось вала"]
[]
[]
[{"$nulls":32},"Wykonał:","Sestavil:","Designed by:","Aufgestellt:","Wykonał:","DESSINE PAR:","Getekend door:","Joonestatud:","\nSuunnitellut:","спроектировано:"]
[{"$nulls":32},"Skorygował:","Upravil:","Checked by","Bereinigt:","Skorygował:","MODIFIE PAR:","Gecontroleerd door:","Kontrollitud:","Tarkistanut","проверил:"]
[{"$nulls":32},"Skorygowano dnia:","Schváleno - datum:","Approved by - date:","Bereinigt am:","Skorygowano dnia:","MODIFIE LE (DATE):","Goedgekeurd datum:","Kinnitatud:","\nHyväksytty - päivämäärä:","одобрил-дата:"]
[{"$nulls":32},"Nazwa pliku:","Název souboru:","File name:","Dateiname:","Nazwa pliku:","TITRE:","Bestandsnaam","Faili nimi:","\nTiedoston nimi:","навание файла:"]
[{"$nulls":32},"Data:","Datum:","Date:","Datum:","Data:","DATE:","Datum:","Kuupäev:","Päivämäärä:","дата:"]
[{"$nulls":32},"Podział.:","Měřítko","Scale:","Massst.:","Podział.:","ECHELLE:","Schaal:","Mõõtkava:","Mittakaava:","шкала:"]
[{"$nulls":32},"Format:","Formát: ","Sheet:","Format:","Format:","FORMAT:","Sheet:","Formaat:","Lista:","лист:"]
[{"$nulls":32},"PRZYGOTOWANIE KONSTRUKCYJNE  ","STAVEBNÍ PŘIPRAVENOST    ","INSTALLATION DRAWING  ","BAUBEREITSCHAFT  ","PRZYGOTOWANIE KONSTRUKCYJNE  ","PLAN DE RESERVATIONS & ENCOMBREMENTS   ","INBOUWTEKENING VOORGE  ","Paigaldusjoonis","ASENNUSPIIRUSTUS ","монтажный чертеж"]
[{"$nulls":32},"sprężyny nad nadprożem ","pružiny nad překladem ","springs above lintel "," Federn oberhalb des Sturzes ","sprężyny nad nadprożem ","RESSORTS AVANTS DEPORTES DU LINTEAU","verenpakket boven latei","vedrud ava kohal","jouset ovipalkkin päällä","нижнее расположение вала"]
[{"$nulls":32},"PROWADZENIE PIONOWE (VL-T)","VERTIKÁLNÍ SYSTÉM","VERTICAL LIFT SYSTEM","VERTIKALER BESCHLAG (VL-T)","PROWADZENIE PIONOWE (VL-T)","LEVEE VERTICALE (VL)","VERTICAAL PLAFONDSYSTEEM"]
[{"$nulls":32},"Kod:","Kód:","Code:","Kode:","Kod:","CODE:","Nr.:","Kood:","Koodi:","код:"]
[{"$nulls":32},"Wersja:","Verze:","Version:","Version:","Wersja:","VERSION:","Versie:","Versioon:","Versio:","версия:"]
[{"$nulls":32},"Nie jest wymagane","NENÍ POŽADOVÁNO","NOT REQUIRED","NICHT ERFORDELICH","Nie jest wymagane","Pas nécessaire","NIET BENODIGD","Mitte vajalik","EI VAADITTU","НЕ ТРЕБУЕТСЯ"]
[]
[{"$nulls":32},"Prosimy o wypełnienie pól oznaczonych kolorem!","Prosím, vyplňte pole, která jsou označena barevně!","Please, fill in the fields that are marked in color!","Fülen Sie bitte markierte Felder!","Prosimy o wypełnienie pól oznaczonych kolorem!","S'il vous plaît remplissez les champs qui sont marqués en couleur!","Vul a.u.b. de gemarkeerde velden in!","Palun täida värvilised väljad!","\nTäytä kentät, jotka on merkitty värillä!","пожалуйста, заполните поля обозначенные цветом!"]
[]
[{"$nulls":32},"Sterowanie","Ovládání","Operated","Bedienung","Sterowanie","PORTE","Bediening","Avamine","Ohjattu","Тип управления"]
[{"$nulls":32},"ręcznie wykonany","ručně","manually","hand","ręcznie wykonany","MANUELLE","hand","käsitsi","manuaalisesti","вручную"]
[{"$nulls":32},"elektrycznie","elektricky","electrical ","elektrisch","elektrycznie","MOTORISEE","elektrisch","elektriliselt","sähköisesti","электрическое управление или с помощью цепи"]
[{"$nulls":32},"Łańcuch napędu -  lewy","řetězovým převodem vlevo","hauling chain operated - left","Haspelkette - links","Łańcuch napędu -  lewy","TREUIL A CHAINE - gauche","handketting - links","taliga - vasakule","ketjukäyttöinen - vasen","цепной привод -  левый\n"]
[{"$nulls":32},{"$f":"VLOOKUP(AH105,AH105:AR199,$AE$1,FALSE)","v":"Łańcuch napędu -  prawy"},"řetězovým převodem vpravo","hauling chain operated - right","Haspelkette - rechts","Łańcuch napędu -  prawy","TREUIL A CHAINE - droite","handketting - rechts","taliga - paremale","ketjukäyttöinen - oikea","цепной привод -  правая"]
[{"$nulls":32},"Pozycja sylnika","Umístění motoru","Possition of motor","Antriebesposition","Pozycja sylnika","LA POSITION MOTEUR","Positie van de motor","mootori asukohta","Mootorin asema","расположение мотора"]
[{"$nulls":32},"silnik elektryczny po lewej stronie","Elektricky - motor vlevo","electric motor on the left","Antrieb - links","silnik elektryczny po lewej stronie","moteur électrique à gauche","elektromotor links","elektrimootor vasakul","sähkömoottori oikealla","электродвигатель слева"]
[{"$nulls":32},"silnik elektryczny po prawej stronie","Elektricky - motor vpravo","electric motor on the right","Antrieb - rechts","silnik elektryczny po prawej stronie","moteur électrique à droite","elektromotor rechts","elektrimootor paremal","sähkömoottori vasemmalla","электродвигатель справа"]
[]
[{"$nulls":32},"Wariant montażu sprężyn","Variantní  montáž pružin","Additional spring mounting","Extra Aufhängung Federpaket","Wariant montażu sprężyn","MONTAGE DES RESSORTS","Extra veer monteren"]
[{"$nulls":32},"jeżeli W< 2000-STP-1 sprężyna (SPR-1)","když B<2000 - STP-1 pružina (SPR-1)","if W< 2000 - INSD-1 spring (SPR-1)","Wenn W< 2000 - BAUS-1 Feder (SPR-1)","jeżeli W< 2000-STP-1 sprężyna (SPR-1)","SI W< 2000 STP-1RESSORT (SPR-1)","als B<2000 - INSD-1 veer (SPR-1)"]
[{"$nulls":32},"jeżeli 2000>=W<6000-STP-2 sprężyna (SPR-2)","když 2000>=W<6000 - STP-2 pružiny (SPR-2)","if 2000>=W<6000 - INSD-2 springs (SPR-2)","Wenn 2000>=W<6000- BAUS-2 Federn (SPR-2)","jeżeli 2000>=W<6000-STP-2 sprężyna (SPR-2)","SI 2000>=W<6000 STP-2RESSORTS (SPR-2)","als 2000>=B<6000 - INSD-2 veren (SPR-2)"]
[{"$nulls":32},"jeżeli W>=6000-STP-4 sprężyna (SPR-4)","když W>=6000 = STP-4 pružiny (SPR-4)","if W>=6000 - INSD-4 springs (SPR-4)","Wenn W>=6000 - BAUS-4 Federn (SPR-4)","jeżeli W>=6000-STP-4 sprężyna (SPR-4)","SI W> 6000 STP-4RESSORTS (SPR-4)","als B>=6000 - INSD-4 veren (SPR-4)"]
[]
[{"$nulls":32},"Rodzaj panelu","Typ panelu","Type of panel","Paneel-Typ","Rodzaj panelu","Type de panneau","Panel type","Paneelitüüp","lamellin tyypi","Тип панели"]
[]
[{"$nulls":32},"40mm","40mm","40mm","40mm","40mm","40mm","40mm","40 mm","40mm","40мм"]
[{"$nulls":32},"80mm","80mm","80mm","80mm","80mm","80mm","80mm","80 mm","80mm","80мм"]
[]
[]
[{"$nulls":32},"Typ moznazowych","Typ vedení","Type of rails","Laufschienen-Typ","Typ moznazowych","Type des rails","Type looprails","Siinide tüüp","Kiskojen tyyppi","Тип направляющих"]
[{"$nulls":32},"2\"","2\"","2\"","2\"","2\"","2\"","2\"","2\"","2\"","2\""]
[{"$nulls":32},"3\"","3\"","3\"","3\"","3\"","3\"","3\"","3\"","3\"","3\""]
[{"$nulls":32},{"$f":"VLOOKUP(AH124,AH124:AR218,$AE$1,FALSE)","v":"Oferta/Zamówienie:"},"Nabídka/Objednávka:","Offer/Order:","Angebot/Bestellung:","Oferta/Zamówienie:","Offre/Commande:","Offerte/Order:","Pakkumine/tellimus:","Tarjous/Tilaus:","Предложение/заказ:"]
[{"$nulls":32},"Pozycje:","Pozice:","Position:","Position:","Pozycje:","Positions:","Positie:","Ametikohad:","Työpaikat:","Позиции:"]
[{"$nulls":32}," 1 1/4 \"Wał"," 1 1/4\" hřídel","1 1/4 \"shaft","1 1/4 \"Schaft"," 1 1/4 \"Wał"," 1 1/4 \"arbre","1 1/4 \"schacht","1 1/4\" võlli puhul","1 1/4 \"akseli"," 1,25 дюйма перемычка "]
[{"$nulls":32},{"$f":"VLOOKUP(AH127,AH127:AR218,$AE$1,FALSE)","v":"Lewa strona"},"Levá strana","Left side ","Linke Seite","Lewa strona","Côté gauche","Linkerzijde","Vasakpoolne","Vasen puoli","левая сторона"]
[{"$nulls":32},"Prawa strona","Pravá strana","Right side","Rechte Seite","Prawa strona","Côté droit","Rechterkant","Paremal pool","Oikea puoli"]
[{"$nulls":32},{"$f":"VLOOKUP(AH129,AH129:AR224,$AE$1,FALSE)","v":"Dla przerywacza kabla z pomarańczową osłoną odstęp boczny (L i R) min. 145 mm"},"Pro pojistku při prasknutí lanka s oranžovým krytem minimální boční prostor (L a R) min. 145mm","For cable break device with orange cover  side space (L and R) min. 145mm","Für Seilbruchsicher mit orangefarbenem Deckel Seitenabstand (L und R) min. 145mm","Dla przerywacza kabla z pomarańczową osłoną odstęp boczny (L i R) min. 145 mm","Pour les dispositifs de coupure de câble avec couvercle orange espace latéral (G et D) min. 145mm","Voor kabelbreekapparaat met oranje afdekking Zijruimte (L en R) min. 145 mm","Oranži kattega kaablikatkestusseadme jaoks külgmised ruumid (L ja R) min. 145mm","Kaapelin katkaisulaitteelle, jossa on oranssi kansi Sivutila (L ja R) min. 145mm.","Для устройства разрыва кабеля с оранжевой крышкой боковое пространство (L и R) мин. 145 мм"]
[{"$nulls":32},{"$f":"VLOOKUP(AH130,AH130:AR225,$AE$1,FALSE)","v":"Strona silnika "},"Strana motoru","Motor side ","Antriebseite ","Strona silnika ","Côté moteur ","Motorzijde ","Mootori pool ","Moottorin puoli ","Сторона двигателя "]
[{"$nulls":32},"Druga strona ","Druhá strana","Other side","Andere Seite ","Druga strona ","Autre côté ","Andere kant ","Teine pool ","Muu puoli ","Другая сторона "]

{"sheet":"SL_420_SW-R","index":1,"n_rows":48,"n_cols":5,"rows_kept":48,"merged":[[5,0,8,0],[5,8,6,8],[14,0,17,0],[39,2,40,8],[41,2,42,3],[41,4,42,6],[41,7,48,8],[43,2,44,3],[43,4,44,6],[45,2,46,3],[45,4,46,6],[47,2,48,3],[47,4,48,6]]}
{"$rows_empty":39}
[null,null,{"$f":"general!V65","v":"PROWADZENIE STANDARDOWE (SL) 420, 500"}]
[]
[null,null,{"$f":"general!AG101","v":"Sterowanie"},null,{"$f":"general!$AG$108","v":"silnik elektryczny po prawej stronie"}]
[]
[null,null,{"$f":"general!$R$61","v":"Wykonał:"}]
[]
[null,null,{"$f":"general!$T$61","v":"Skorygował:"}]
[]
[null,null,{"$f":"general!$Z$61","v":"Data:"}]

{"sheet":"SL_420_SW-L","index":2,"n_rows":48,"n_cols":5,"rows_kept":48,"merged":[[5,0,6,0],[5,8,8,8],[14,0,17,0],[14,8,17,8],[25,2,25,3],[27,4,28,4],[39,2,40,8],[41,2,42,3],[41,4,42,6],[41,7,48,8],[43,2,44,3],[43,4,44,6],[45,2,46,3],[45,4,46,6],[47,2,48,3],[47,4,48,6]]}
{"$rows_empty":39}
[null,null,{"$f":"general!V65","v":"PROWADZENIE STANDARDOWE (SL) 420, 500"}]
[]
[null,null,{"$f":"general!AG101","v":"Sterowanie"},null,{"$f":"general!$AG$107","v":"silnik elektryczny po lewej stronie"}]
[]
[null,null,{"$f":"general!$R$61","v":"Wykonał:"}]
[]
[null,null,{"$f":"general!$T$61","v":"Skorygował:"}]
[]
[null,null,{"$f":"general!$Z$61","v":"Data:"}]

{"sheet":"Manually_operated","index":3,"n_rows":48,"n_cols":5,"rows_kept":48,"merged":[[5,0,6,0],[5,8,8,8],[14,0,17,0],[14,8,17,8],[25,2,25,3],[27,4,28,4],[39,2,40,8],[41,2,42,3],[41,4,42,6],[41,7,48,8],[43,2,44,3],[43,4,44,6],[45,2,46,3],[45,4,46,6],[47,2,48,3],[47,4,48,6]]}
{"$rows_empty":39}
[null,null,{"$f":"general!V65","v":"PROWADZENIE STANDARDOWE (SL) 420, 500"}]
[]
[null,null,{"$f":"general!AG101","v":"Sterowanie"},null,{"$f":"general!$AG$102","v":"ręcznie wykonany"}]
[]
[null,null,{"$f":"general!$R$61","v":"Wykonał:"}]
[]
[null,null,{"$f":"general!$T$61","v":"Skorygował:"}]
[]
[null,null,{"$f":"general!$Z$61","v":"Data:"}]

{"sheet":"Obrázky","index":4,"n_rows":128,"n_cols":28,"rows_kept":128,"hidden":true,"merged":[[5,24,7,30],[19,3,43,3],[19,4,43,10],[46,3,70,3],[46,4,70,10],[73,3,97,3],[73,4,97,10],[100,3,124,3],[100,4,124,10],[127,3,151,3],[127,4,151,10]]}
[]
[]
[]
[]
[]
[{"$nulls":24},"Pomocné výpočty"]
[]
[]
[]
[{"$nulls":24},"L=",125]
[{"$nulls":24},"R=",375]
[{"$nulls":24},"W=",4500]
[{"$nulls":24},"L+ W + R = ",{"$f":"IF(OR(general!K3=\"\",general!K7=\"\"),\"L + W + R \", Y13 & Z10+Z11+Z12)","v":"L + W + R "}]
[{"$nulls":24},"HL ","HL 4100"]
[]
[{"$nulls":24},"Leva strana dole",{"$f":"IF(general!K7=\"\",\"\",IF(general!K7=general!AG102,125,IF(OR(general!K7=general!AG105,general!K7=general!AG108),375,IF(OR(general!K7 =general!AG105,general!K7=general!AG108),375,125))))","v":""},"I32","AB16"]
[{"$nulls":24},"Pravo dole",{"$f":"IF(general!K7=\"\",\"\",IF(general!K7=general!AG102,125,IF(OR(general!K7=general!AG104,general!K7=general!AG107),375,IF(OR(general!K7=general!AG104,general!K7=general!AG107),375,125))))","v":""},"I33","AB17"]
[{"$nulls":24},"Kota dole ",{"$f":"IF(general!K11=\"\",\"\",IF(general!$K$11=\"2\"\"\",80,100))","v":""},"I34","AB18"]
[{"$nulls":24},"V pravo ",{"$f":"IF(OR(general!K7=general!AU3,general!K7=general!AU4,general!K7=general!AU2,general!K7=general!AU1),IF(OR(general!$K$11=\"2\"\"\",general!$K$11=\"\"),100,120),\"\")","v":""},"I35","AB19"]
[{"$nulls":3},{"$f":"general!AG108","v":"silnik elektryczny po prawej stronie"},{"$nulls":20},"V levo",{"$f":"IF(OR(general!K7=general!AU2,general!K7=general!AU5,general!K7=general!AU3,general!K7=general!AU1),IF(OR(general!$K$11=\"2\"\"\",general!$K$11=\"\"),100,120),\"\")","v":""},"I36","AB20"]
[{"$nulls":25},{"$f":"IF(general!K5=\"\",\"\",IF(general!K5<5500,160,200))","v":""}]
[{"$nulls":24},"Prostor 40mm panel",{"$f":"IF(general!$K$9=general!$AG$118,290,250)","v":250}]
{"$rows_empty":24}
[{"$nulls":3},{"$f":"general!AG107","v":"silnik elektryczny po lewej stronie"}]
{"$rows_empty":26}
[{"$nulls":3},{"$f":"general!AG102","v":"ręcznie wykonany"}]
{"$rows_empty":26}
[{"$nulls":3},{"$f":"general!AG104","v":"Łańcuch napędu -  lewy"}]
{"$rows_empty":26}
[{"$nulls":3},{"$f":"general!AG105","v":"Łańcuch napędu -  prawy"}]